fUST/lending_fUST_20240811
["ID","MTS","AMOUNT","RATE_DAILY","PERIOD"]
[334631159,1723365038844,-1500.0,0.00015746,2]
[334631160,1723365038854,-29.49422466,0.00015851,2]
[334631161,1723365038867,-2134.96378452,0.00015851,2]
[334631162,1723365038877,-2164.45800918,0.00015851,2]
[334631163,1723365038886,-533.92328189,0.00015851,2]
[334631164,1723365038896,-209.37253615,0.00015851,2]
[334631165,1723365038908,-209.37253615,0.00015952,2]
[334631166,1723365038919,-471.24155498,0.00015952,2]
[334631167,1723365038929,-419.82420017,0.00016,2]
[334631168,1723365038942,-500.0,0.00016016,2]
[334631169,1723365038954,-500.0,0.00016016,2]
[334631170,1723365038965,-227.46583454,0.00016016,2]
[334631171,1723365038976,-500.0,0.00016016,2]
[334631172,1723365038986,-500.0,0.00016016,2]
[334631173,1723365038996,-500.0,0.00016016,2]
[334631174,1723365039006,-500.0,0.00016016,2]
[334631175,1723365039017,-500.0,0.00016016,2]
[334631176,1723365039027,-500.0,0.00016016,2]
[334631177,1723365039038,-500.0,0.00016016,2]
[334631178,1723365039049,-500.0,0.00016016,2]
[334631179,1723365039058,-500.0,0.00016016,2]
[334631180,1723365039067,-500.0,0.00016016,2]
[334631181,1723365039076,-500.0,0.00016016,2]
[334631182,1723365039086,-500.0,0.00016016,2]
[334631183,1723365039096,-203.78578804,0.00016016,2]
[334631184,1723365039107,-37459.86682704,0.00016017,2]
[334631185,1723365039120,-34376.04927873,0.00016017,2]
[334631186,1723365039135,-171679.466966,0.00016017,2]
[334631187,1723365039145,-277.43269753,0.00016532,2]
[334631188,1723365039155,-816.94684465,0.00017,3]
[334631189,1723365039166,-154.76012181,0.00017,2]
[334631190,1723365039176,-150.112233,0.00017,2]
[334631191,1723365039186,-420.0,0.00017271,2]
[334631192,1723365039197,-332.38436686,0.00017379,2]
[334631193,1723365039206,-2710.33053727,0.00017389,2]
[334631194,1723365039216,-1989.40201653,0.000176,2]
[334631195,1723365039228,-9651.03918107,0.00017882,2]
[334631196,1723365039239,-1494.25391007,0.000179,2]
[334631197,1723365039251,-1000.0,0.00018,2]
[334631198,1723365039263,-1044.48899268,0.00018,2]
[334631199,1723365039273,-205.72213843,0.00018,2]
[334631200,1723365039283,-1749.31381177,0.00018,2]
[334631201,1723365039293,-1945.19322452,0.00018,2]
[334631202,1723365039303,-150.112233,0.000183,2]
[334631203,1723365039313,-3238.07262139,0.00018447,2]
[334631204,1723365039323,-1000.0,0.000185,2]
[334631205,1723365039332,-5240.178669,0.00018679,2]
[334631206,1723365039342,-1364.59246336,0.00018701,2]
[334631207,1723365039352,-850.13586547,0.00018773,2]
[334631208,1723365039362,-155.06457834,0.00018773,2]
[334631209,1723365039372,-241.01224895,0.00018799,2]
[334631210,1723365039382,-85839.7334831,0.00018806,2]
[334631211,1723365039393,-5321.67920991,0.00018809,2]
[334631212,1723365039404,-154.76012181,0.00018825,2]
[334631213,1723365039414,-154.76012181,0.00018845,2]
[334631214,1723365039424,-200.0,0.00018873,2]
[334631215,1723365039433,-200.0,0.00018873,2]
[334631216,1723365039444,-200.0,0.00018873,2]
[334631217,1723365039455,-136601.39788084,0.0001888,2]
[334631238,1723365040782,-4351.41653491,0.00015608,2]
[334631271,1723365043520,-942.96108788,0.00015608,2]
[334631299,1723365074285,459.71,0.000232,31]
[334631300,1723365074343,459.71,0.000232,31]
[334631301,1723365074404,459.71,0.000232,31]
[334631302,1723365074516,459.71,0.000232,31]
[334631303,1723365074579,459.71,0.000232,31]
[334631304,1723365074639,459.71,0.000232,31]
[334631305,1723365074696,459.71,0.000232,31]
[334631306,1723365074759,459.71,0.000232,31]
[334631307,1723365074816,459.71,0.000232,31]
[334631308,1723365074877,459.71,0.000232,31]
[334631309,1723365074935,459.71,0.000232,31]
[334631310,1723365075019,459.71,0.000232,31]
[334631311,1723365075061,459.71,0.000232,31]
[334631312,1723365075121,459.71,0.000232,31]
[334631313,1723365075183,459.71,0.000232,31]
[334631314,1723365075254,459.71,0.000232,31]
[334631315,1723365075322,459.71,0.000232,31]
[334631316,1723365075367,459.71,0.000232,31]
[334631317,1723365075427,459.71,0.000232,31]
[334631318,1723365075487,459.71,0.000232,31]
[334631319,1723365086720,492.86524914,0.00015,2]
[334631320,1723365124941,550.69055464,0.00015,2]
[334631321,1723365124967,362.35258066,0.00015,2]
[334631322,1723365126203,211.767712,0.0001481,2]
[334631323,1723365190421,952.621668,0.00015,2]
[334631324,1723365201581,952.621668,0.00015,2]
[334631328,1723365265025,168.52231,0.00014247,2]
[334631329,1723365274229,728.15079492,9.999e-05,2]
[334631330,1723365283525,5000.0,0.0001501,2]
[334631331,1723365301849,5145.38,0.0001501,2]
[334631332,1723365310505,188.40491976,9.999e-05,2]
[334631333,1723365348977,188.40491976,0.0001212,2]
[334631335,1723365422971,168.90008042,0.00014691,2]
[334631344,1723365511438,7216.33321506,0.00025,60]
[334631349,1723365671924,211.767712,0.00014763,2]
[334631350,1723365675971,24900.0,0.00014773,2]
[334631353,1723365686113,367.81,0.000232,31]
[334631354,1723365686168,367.81,0.000232,31]
[334631355,1723365686246,367.81,0.000232,31]
[334631356,1723365686300,367.81,0.000232,31]
[334631357,1723365686362,367.81,0.000232,31]
[334631358,1723365686423,367.81,0.000232,31]
[334631359,1723365686475,367.81,0.000232,31]
[334631360,1723365686538,367.81,0.000232,31]
[334631361,1723365686596,367.81,0.000232,31]
[334631362,1723365686653,367.81,0.000232,31]
[334631363,1723365686694,367.81,0.000232,31]
[334631364,1723365686770,367.81,0.000232,31]
[334631365,1723365686809,367.81,0.000232,31]
[334631366,1723365686928,367.81,0.000232,31]
[334631367,1723365687150,367.81,0.000232,31]
[334631368,1723365687190,367.81,0.000232,31]
[334631369,1723365687233,367.81,0.000232,31]
[334631370,1723365687273,367.81,0.000232,31]
[334631371,1723365687326,367.81,0.000232,31]
[334631372,1723365687374,367.81,0.000232,31]
[334631374,1723365714924,169.232768,0.00014247,2]
[334631380,1723366049108,-250.0,0.00015471,2]
[334631381,1723366049133,-250.0,0.00015514,2]
[334631382,1723366049154,-250.0,0.00015556,2]
[334631383,1723366049176,-250.0,0.00015599,2]
[334631384,1723366049198,-250.0,0.00015641,2]
[334631385,1723366049219,-250.0,0.00015683,2]
[334631386,1723366049241,-300.0,0.00015707,2]
[334631387,1723366049420,-300.0,0.00015707,2]
[334631388,1723366049441,-7680.81713873,0.00015708,2]
[334631391,1723366130856,332.38436686,9.999e-05,2]
[334631401,1723366166715,1084.21608022,0.00014847,2]
[334631402,1723366166743,23815.78391978,0.00014847,2]
[334631403,1723366212911,168.967382,0.00014247,2]
[334631435,1723366232631,-1156.10299591,0.00015708,2]
[334631437,1723366232642,-2164.45800918,0.00015708,2]
[334631439,1723366232654,-728.15079492,0.00015712,2]
[334631441,1723366232664,-250.0,0.00015726,2]
[334631443,1723366232674,-155.06457834,0.00015746,2]
[334631445,1723366232683,-250.0,0.00015768,2]
[334631447,1723366232693,-250.0,0.00015811,2]
[334631449,1723366232703,-300.0,0.0001585,2]
[334631451,1723366232713,-300.0,0.0001585,2]
[334631453,1723366232724,-952.621668,0.00015851,2]
[334631455,1723366232734,-250.0,0.00015853,2]
[334631458,1723366232744,-7187.65133763,0.00015854,2]
[334631460,1723366232754,-250.0,0.00015896,2]
[334631464,1723366232768,-279.8828001,0.000159,2]
[334631467,1723366232778,-279.8828001,0.000159,2]
[334631469,1723366232788,-279.8828001,0.000159,2]
[334631471,1723366232797,-250.0,0.00015938,2]
[334631473,1723366232809,-250.0,0.0001598,2]
[334631476,1723366232819,-250.0,0.00016023,2]
[334631479,1723366232828,-250.0,0.00016065,2]
[334631482,1723366232839,-250.0,0.00016108,2]
[334631485,1723366232853,-9651.03918107,0.0001611,2]
[334631488,1723366232863,-250.0,0.0001615,2]
[334631491,1723366232873,-250.0,0.00016193,2]
[334631495,1723366232885,-250.0,0.00016235,2]
[334631498,1723366232894,-250.0,0.00016278,2]
[334631501,1723366232904,-154.76012181,0.00016347,2]
[334631504,1723366232914,-154.76012181,0.00016347,2]
[334631507,1723366232924,-277.43269753,0.00016532,2]
[334631510,1723366232933,-7007.90701187,0.00017019,2]
[334631513,1723366232943,-420.0,0.00017332,2]
[334631515,1723366232953,-1993.38782086,0.00017379,2]
[334631517,1723366232963,-1713.65897753,0.00017379,2]
[334631519,1723366232973,-1993.38782086,0.00017379,2]
[334631521,1723366232984,-1384.13048712,0.00017389,2]
[334631524,1723366232993,-1612.06535955,0.00017403,2]
[334631525,1723366233003,-2710.33053727,0.00017403,2]
[334631527,1723366233014,-639.56505503,0.00017403,2]
[334631530,1723366233023,-420.0,0.00017435,2]
[334631531,1723366233033,-471.24155498,0.0001784,2]
[334631533,1723366233043,-611.53664136,0.0001788,2]
[334631536,1723366233053,-20777.37607493,0.00017881,2]
[334631538,1723366233063,-1765.03360075,0.00017882,2]
[334631540,1723366233074,-694.71379029,0.00017882,2]
[334631542,1723366233084,-1765.03360075,0.00017882,2]
[334631543,1723366233094,-1500.0,0.00017882,2]
[334631544,1723366233104,-846.23163308,0.00017882,2]
[334631545,1723366233114,-2126.37973248,0.00017882,2]
[334631546,1723366233123,-509.00826364,0.00017882,2]
[334631547,1723366233134,-309.44300337,0.00018,2]
[334631548,1723366233143,-1044.48899268,0.00018,2]
[334631549,1723366233154,-205.72213843,0.00018,2]
[334631550,1723366233163,-5240.178669,0.00018,2]
[334631551,1723366233173,-1364.59246336,0.00018,2]
[334631552,1723366233183,-154.76012181,0.00018125,2]
[334631553,1723366233193,-816.94684465,0.00018125,3]
[334631554,1723366233203,-309.38120746,0.00018125,2]
[334631555,1723366233212,-569.05372197,0.00018302,2]
[334631556,1723366233223,-196.63865106,0.00018302,2]
[334631557,1723366233234,-208.34957907,0.00018302,2]
[334631558,1723366233244,-241.01224895,0.00018302,2]
[334631560,1723366233254,-174.49494906,0.00018302,2]
[334631561,1723366233264,-11531.88967125,0.00018306,2]
[334631562,1723366233277,-8867.275,0.00018306,2]
[334631563,1723366233312,-500.0,0.0001788,2]
[334631564,1723366233323,-1256.24545313,0.00018306,2]
[334631565,1723366233336,-1760.49637946,0.00018306,2]
[334631605,1723366242527,-35040.45161499,0.00015746,2]
[334631606,1723366242537,-451.66141276,0.00016309,2]
[334631607,1723366242547,-500.0,0.0001788,2]
[334631608,1723366242557,-500.0,0.0001788,2]
[334631609,1723366242568,-500.0,0.0001788,2]
[334631610,1723366242578,-500.0,0.0001788,2]
[334631611,1723366242587,-551.391109,0.0001788,2]
[334631612,1723366242597,-20777.37607493,0.00017881,2]
[334631613,1723366242606,-569.05372197,0.00018125,2]
[334631614,1723366242616,-319.92531565,0.00018302,2]
[334631615,1723366242626,-46857.4394627,0.00018306,2]
[334631616,1723366242716,-3406.575915,0.00018306,2]
[334631634,1723366246869,-1186.06994875,0.00017389,2]
[334631635,1723366297853,294.28,0.000232,31]
[334631636,1723366297910,294.28,0.000232,31]
[334631637,1723366297969,294.28,0.000232,31]
[334631638,1723366298031,294.28,0.000232,31]
[334631639,1723366298091,294.28,0.000232,31]
[334631640,1723366298149,294.28,0.000232,31]
[334631641,1723366298204,294.28,0.000232,31]
[334631642,1723366298276,294.28,0.000232,31]
[334631643,1723366298333,294.28,0.000232,31]
[334631644,1723366298489,294.28,0.000232,31]
[334631645,1723366298526,294.28,0.000232,31]
[334631646,1723366298564,294.28,0.000232,31]
[334631647,1723366298621,294.28,0.000232,31]
[334631648,1723366298688,294.28,0.000232,31]
[334631649,1723366298748,294.28,0.000232,31]
[334631650,1723366298806,294.28,0.000232,31]
[334631651,1723366298869,294.28,0.000232,31]
[334631652,1723366298930,294.28,0.000232,31]
[334631653,1723366298995,294.28,0.000232,31]
[334631654,1723366299050,294.28,0.000232,31]
[334631660,1723366503667,833.9783937,0.00027,120]
[334631671,1723366711796,169.232768,0.00014247,2]
[334631686,1723366815508,273.37336231,9.9e-05,2]
[334631687,1723366821402,289.6,0.00010959,2]
[334631689,1723366831502,273.37336231,9.9e-05,2]
[334631690,1723366831887,241.33,0.00010959,2]
[334631691,1723366842375,201.11,0.00010959,2]
[334631695,1723366847955,273.37336231,9.9e-05,2]
[334631696,1723366853051,167.59,0.00010959,2]
[334631697,1723366863491,273.37336231,9.9e-05,2]
[334631698,1723366874130,837.99,0.00010959,2]
[334631699,1723366878905,273.37336231,9.9e-05,2]
[334631703,1723366895401,273.37336231,9.9e-05,2]
[334631704,1723366909691,249.48,0.000232,31]
[334631705,1723366909740,249.48,0.000232,31]
[334631706,1723366909802,249.48,0.000232,31]
[334631707,1723366909855,249.48,0.000232,31]
[334631708,1723366909922,249.48,0.000232,31]
[334631709,1723366909979,249.48,0.000232,31]
[334631710,1723366910056,249.48,0.000232,31]
[334631711,1723366910099,249.48,0.000232,31]
[334631712,1723366910165,249.48,0.000232,31]
[334631713,1723366910255,249.48,0.000232,31]
[334631714,1723366910320,249.48,0.000232,31]
[334631715,1723366910408,249.48,0.000232,31]
[334631716,1723366910498,249.48,0.000232,31]
[334631717,1723366910554,249.48,0.000232,31]
[334631718,1723366910592,249.48,0.000232,31]
[334631719,1723366910655,249.48,0.000232,31]
[334631720,1723366910698,249.48,0.000232,31]
[334631721,1723366910765,249.48,0.000232,31]
[334631722,1723366910863,249.48,0.000232,31]
[334631723,1723366910960,249.48,0.000232,31]
[334631724,1723366911361,273.37336231,9.9e-05,2]
[334631725,1723366927437,273.37336231,9.9e-05,2]
[334631726,1723366942748,273.37336231,9.9e-05,2]
[334631731,1723366959380,273.37336231,9.9e-05,2]
[334631732,1723366974682,273.37336231,9.9e-05,2]
[334631733,1723366990568,273.37336231,9.9e-05,2]
[334631734,1723367006312,273.37336231,9.9e-05,2]
[334631745,1723367022135,273.37336231,9.9e-05,2]
[334631746,1723367038023,273.37336231,9.9e-05,2]
[334631753,1723367054020,273.37336231,9.9e-05,2]
[334631754,1723367070117,273.37336231,9.9e-05,2]
[334631755,1723367087026,273.37336231,9.9e-05,2]
[334631756,1723367094616,747.0976536,0.00021918,30]
[334631768,1723367193415,461.13495856,0.00016095,4]
[334631769,1723367220859,24900.0,0.00014774,2]
[334631784,1723367225634,169.356821,0.00014247,2]
[334631785,1723367231170,-250.0,0.00015518,2]
[334631786,1723367231193,-250.0,0.00015561,2]
[334631787,1723367231216,-250.0,0.00015603,2]
[334631788,1723367231242,-250.0,0.00015646,2]
[334631789,1723367231263,-250.0,0.00015689,2]
[334631790,1723367231285,-300.0,0.00015707,2]
[334631791,1723367231307,-287.0,0.00015707,2]
[334631792,1723367231328,-7851.72614303,0.00015708,2]
[334631793,1723367248147,-929.10256551,0.00015708,2]
[334631822,1723367323943,250.0,0.00014875,2]
[334631823,1723367324166,250.0,0.00014916,2]
[334631824,1723367324379,250.0,0.00014957,2]
[334631825,1723367324597,250.0,0.00014998,2]
[334631831,1723367373144,-250.0,0.00015039,2]
[334631832,1723367373169,-250.0,0.00015079,2]
[334631833,1723367373196,-250.0,0.0001512,2]
[334631834,1723367373219,-247.64733432,0.00015161,2]
[334631835,1723367373246,-2.35266568,0.00015161,2]
[334631836,1723367373270,-250.0,0.00015202,2]
[334631837,1723367373294,-250.0,0.00015243,2]
[334631838,1723367373316,-250.0,0.00015283,2]
[334631839,1723367373338,-250.0,0.00015324,2]
[334631840,1723367373360,-250.0,0.00015365,2]
[334631841,1723367373382,-250.0,0.00015406,2]
[334631842,1723367373404,-250.0,0.00015447,2]
[334631843,1723367373427,-250.0,0.00015487,2]
[334631844,1723367373454,-250.0,0.00015528,2]
[334631845,1723367373477,-250.0,0.00015569,2]
[334631846,1723367373505,-250.0,0.0001561,2]
[334631847,1723367373527,-250.0,0.00015651,2]
[334631848,1723367373548,-300.0,0.00015707,2]
[334631849,1723367373569,-870.21047253,0.00015708,2]
[334631850,1723367373591,-1993.38782086,0.00015708,2]
[334631851,1723367373612,-952.621668,0.00015708,2]
[334631852,1723367373635,-263.83670763,0.0001571,2]
[334631853,1723367373658,-850.13586547,0.00015712,2]
[334631854,1723367373680,-1264.1091395,0.00015744,2]
[334631855,1723367387578,952.621668,0.00015,2]
[334631870,1723367431687,-293.56680005,0.00015651,2]
[334631877,1723367431748,-7164.42024838,0.00015651,2]
[334631879,1723367431758,-42377.77535747,0.00015711,2]
[334631881,1723367431768,-154.76012181,0.00015712,2]
[334631883,1723367431778,-1500.0,0.00015712,2]
[334631885,1723367431787,-14251.4449406,0.00015712,2]
[334631888,1723367431805,-601.3570708,0.00015712,2]
[334631889,1723367431814,-300.0,0.00015743,2]
[334631892,1723367431824,-2280.2888261,0.00015744,3]
[334631894,1723367431833,-413.18177562,0.00015744,2]
[334631896,1723367431844,-3090.31067256,0.00015746,2]
[334631898,1723367431853,-201.64749152,0.00015746,2]
[334631900,1723367431863,-1163.86062826,0.00015746,2]
[334631902,1723367431873,-183.07679596,0.00015746,2]
[334631904,1723367431883,-2139.82745581,0.00015746,2]
[334631906,1723367431893,-404.08727484,0.00015751,2]
[334631908,1723367431902,-664.23911189,0.00015751,2]
[334631910,1723367431912,-682.31873424,0.00015751,2]
[334631912,1723367431921,-210.04889723,0.00015751,2]
[334631914,1723367431931,-833.90450018,0.00015751,2]
[334631916,1723367431943,-187.29962987,0.00015751,2]
[334631918,1723367431953,-344.27180303,0.00015851,2]
[334631920,1723367431963,-1013.60394397,0.00015851,2]
[334631922,1723367431975,-241.01224895,0.00015851,2]
[334631924,1723367431984,-408.19220589,0.00015851,2]
[334631926,1723367431993,-1091.50397563,0.00015851,2]
[334631928,1723367432004,-244.97937896,0.00015952,2]
[334631930,1723367432014,-154.76012181,0.00015952,2]
[334631933,1723367432024,-319.90937201,0.00015952,2]
[334631935,1723367432034,-414.28019691,0.00015952,2]
[334631937,1723367432045,-269.63517677,0.00015954,2]
[334631939,1723367432055,-642.93926499,0.00016246,2]
[334631941,1723367432065,-642.93926499,0.00016817,2]
[334631943,1723367432076,-500.0,0.00016899,2]
[334631945,1723367432087,-452.40230176,0.00016899,2]
[334631947,1723367432096,-150.112233,0.000169,2]
[334631949,1723367432106,-183.81985145,0.00016998,2]
[334631951,1723367432116,-317.18403907,0.00016998,2]
[334631953,1723367432126,-500.0,0.00016998,2]
[334631955,1723367432136,-500.0,0.00016998,2]
[334631957,1723367432146,-500.0,0.00016998,2]
[334631959,1723367432155,-418.15022371,0.00016998,2]
[334631961,1723367432164,-500.0,0.00016998,2]
[334631963,1723367432174,-500.0,0.00016998,2]
[334631966,1723367432184,-500.0,0.00016998,2]
[334631968,1723367432198,-500.0,0.00016998,2]
[334631970,1723367432211,-500.0,0.00016998,2]
[334631972,1723367432220,-500.0,0.00016998,2]
[334631974,1723367432230,-500.0,0.00016998,2]
[334631976,1723367432241,-500.0,0.00016998,2]
[334631978,1723367432250,-500.0,0.00016998,2]
[334631980,1723367432259,-200.0,0.00016998,2]
[334631982,1723367432271,-92678.34107305,0.00016998,2]
[334631984,1723367432282,-361252.760224,0.00016999,2]
[334631986,1723367432291,-154.76012181,0.00017019,2]
[334631988,1723367432303,-150.112233,0.000171,2]
[334631990,1723367432313,-150.112233,0.000173,2]
[334631992,1723367432323,-420.0,0.00017317,2]
[334631994,1723367432333,-642.93926499,0.00017388,2]
[334631996,1723367432342,-150.112233,0.000175,2]
[334631998,1723367432351,-150.112233,0.000178,2]
[334632000,1723367432361,-642.93926499,0.00017959,2]
[334632002,1723367432371,-4709.96616437,0.00017994,2]
[334632004,1723367432380,-150.112233,0.00018,2]
[334632006,1723367432389,-154.77557542,0.00018179,2]
[334632008,1723367432399,-850.13586547,0.00018179,2]
[334632009,1723367432408,-407.69432481,0.00018179,2]
[334632011,1723367432418,-9651.03918107,0.00018179,2]
[334632013,1723367432428,-150.112233,0.000182,2]
[334632014,1723367432437,-35040.45161499,0.00018356,2]
[334632015,1723367432450,-150.112233,0.000184,2]
[334632016,1723367432460,-90313.1900559,0.0001852,2]
[334632017,1723367432469,-151.0,0.0001852,2]
[334632018,1723367432478,-151.0,0.0001852,2]
[334632019,1723367432487,-152.089884,0.0001852,2]
[334632020,1723367432497,-151.0,0.0001852,2]
[334632021,1723367432506,-169.166284,0.0001852,2]
[334632022,1723367432516,-1819.45739042,0.0001853,2]
[334632023,1723367432525,-642.93926499,0.0001853,2]
[334632024,1723367432534,-660.536962,0.0001853,2]
[334632025,1723367432545,-151.0,0.0001853,2]
[334632026,1723367432555,-660.536962,0.0001853,2]
[334632027,1723367432565,-215.122693,0.0001853,2]
[334632028,1723367432574,-215.122693,0.0001853,2]
[334632029,1723367432583,-151.0,0.0001853,2]
[334632030,1723367432591,-151.0,0.0001853,2]
[334632031,1723367432601,-932.99527997,0.00018587,2]
[334632032,1723367432610,-150.112233,0.000186,2]
[334632033,1723367432620,-151.0,0.00018629,2]
[334632034,1723367432630,-480.569976,0.00018629,2]
[334632035,1723367432639,-480.569976,0.00018629,2]
[334632036,1723367432648,-167.001877,0.00018629,2]
[334632037,1723367432657,-167.001877,0.00018629,2]
[334632038,1723367432667,-151.0,0.00018629,2]
[334632039,1723367432676,-151.0,0.00018629,2]
[334632040,1723367432685,-151.0,0.00018629,2]
[334632041,1723367432695,-151.0,0.00018629,2]
[334632042,1723367432705,-452.48,0.00018629,2]
[334632043,1723367432714,-452.48,0.00018629,2]
[334632044,1723367432724,-151.0,0.00018629,2]
[334632045,1723367432733,-238.618087,0.00018629,2]
[334632046,1723367432743,-238.618087,0.00018629,2]
[334632047,1723367432752,-151.0,0.00018629,2]
[334632048,1723367432761,-151.0,0.00018629,2]
[334632049,1723367432771,-650.678465,0.00018629,2]
[334632050,1723367432780,-650.678465,0.00018629,2]
[334632051,1723367432790,-151.0,0.00018629,2]
[334632052,1723367432801,-151.0,0.00018629,2]
[334632053,1723367432810,-151.0,0.00018629,2]
[334632054,1723367432819,-151.0,0.00018629,2]
[334632055,1723367432829,-480.569976,0.0001863,2]
[334632056,1723367432838,-480.569976,0.0001863,2]
[334632057,1723367432848,-167.001877,0.0001863,2]
[334632058,1723367432859,-167.001877,0.0001863,2]
[334632059,1723367432869,-158.349676,0.0001863,2]
[334632060,1723367432879,-151.0,0.0001863,2]
[334632061,1723367432887,-151.0,0.0001863,2]
[334632062,1723367432897,-151.0,0.0001863,2]
[334632063,1723367432906,-452.48,0.0001863,2]
[334632064,1723367432916,-452.48,0.0001863,2]
[334632065,1723367432925,-238.618087,0.0001863,2]
[334632066,1723367432934,-238.618087,0.0001863,2]
[334632067,1723367432944,-151.0,0.0001863,2]
[334632068,1723367432953,-151.0,0.0001863,2]
[334632069,1723367432963,-650.678465,0.0001863,2]
[334632070,1723367432973,-650.678465,0.0001863,2]
[334632071,1723367432982,-151.0,0.0001863,2]
[334632072,1723367432991,-151.0,0.0001863,2]
[334632073,1723367433001,-370.662299,0.0001863,2]
[334632074,1723367433011,-370.662299,0.0001863,2]
[334632075,1723367433020,-263.30921,0.0001863,2]
[334632076,1723367433030,-263.30921,0.0001863,2]
[334632077,1723367433039,-151.0,0.0001863,2]
[334632078,1723367433059,-641.954911,0.0001863,2]
[334632079,1723367433068,-641.954911,0.0001863,2]
[334632080,1723367433078,-151.0,0.0001863,2]
[334632081,1723367433088,-151.0,0.0001863,2]
[334632082,1723367433097,-152.24049,0.0001863,2]
[334632083,1723367433107,-151.0,0.00018639,2]
[334632084,1723367433116,-151.0,0.00018639,2]
[334632085,1723367433126,-155.212573,0.00018639,2]
[334632086,1723367433136,-438.868445,0.00018639,2]
[334632087,1723367433146,-438.868445,0.00018639,2]
[334632088,1723367433155,-151.0,0.00018639,2]
[334632089,1723367433165,-151.0,0.00018639,2]
[334632090,1723367433175,-151.0,0.00018639,2]
[334632091,1723367433184,-208.82481,0.00018639,2]
[334632092,1723367433194,-480.569976,0.00018639,2]
[334632093,1723367433207,-480.569976,0.00018639,2]
[334632094,1723367433216,-167.001877,0.00018639,2]
[334632095,1723367433225,-167.001877,0.00018639,2]
[334632096,1723367433235,-151.0,0.00018639,2]
[334632097,1723367433244,-151.0,0.00018639,2]
[334632098,1723367433254,-151.0,0.00018639,2]
[334632099,1723367433263,-452.48,0.00018639,2]
[334632100,1723367433273,-452.48,0.00018639,2]
[334632101,1723367433283,-238.618087,0.00018639,2]
[334632102,1723367433295,-238.618087,0.00018639,2]
[334632103,1723367433305,-650.678465,0.00018639,2]
[334632104,1723367433316,-650.678465,0.00018639,2]
[334632105,1723367433326,-151.0,0.00018639,2]
[334632106,1723367433336,-200.0,0.00018673,2]
[334632107,1723367433347,-151.0,0.00018682,2]
[334632108,1723367433356,-152.785211,0.00018682,2]
[334632109,1723367433366,-186.184626,0.00018682,2]
[334632110,1723367433376,-186.184626,0.00018682,2]
[334632111,1723367433385,-151.0,0.00018682,2]
[334632112,1723367433395,-151.0,0.00018682,2]
[334632113,1723367433404,-151.0,0.00018682,2]
[334632114,1723367433413,-151.0,0.00018682,2]
[334632115,1723367433422,-438.868445,0.00018682,2]
[334632116,1723367433432,-438.868445,0.00018682,2]
[334632117,1723367433441,-438.868445,0.00018682,2]
[334632118,1723367433451,-438.868445,0.00018682,2]
[334632119,1723367433460,-151.0,0.00018682,2]
[334632120,1723367433469,-151.0,0.00018682,2]
[334632121,1723367433479,-150.112234,0.000187,2]
[334632122,1723367433488,-150.112233,0.000187,2]
[334632123,1723367433499,-20777.37607493,0.00018701,2]
[334632124,1723367433508,-7007.90701187,0.00018701,2]
[334632125,1723367433517,-159.38116829,0.00018701,2]
[334632126,1723367433527,-154.76012181,0.00018773,2]